bitfinex-derivatives/quotes_BNBF0:USTF0_20251225
["timestamp","ask_amount","ask_price","bid_price","bid_amount"]
[1766670370567,1.19394975,838.35,837.35,1.1893868]
[1766670370771,1.19394975,838.34,837.35,1.1893868]
[1766670370971,1.19394975,838.33,837.35,1.1893868]
[1766670371171,1.19394975,838.32,837.35,1.1893868]
[1766670371372,1.19394975,838.31,837.35,1.1893868]
[1766670371569,1.19394975,838.3,837.35,1.1893868]
[1766670371870,1.19394975,838.29,837.35,1.1893868]
[1766670372073,1.19394975,838.28,837.35,1.1893868]
[1766670372373,1.19394975,838.27,837.35,1.1893868]
[1766670372570,1.19394975,838.26,837.35,1.1893868]
[1766670372775,0.89500617,838.39,837.35,1.1893868]
[1766670373074,1.19394975,838.38,837.35,1.1893868]
[1766670373270,1.19394975,838.37,837.35,1.1893868]
[1766670373474,1.19394975,838.36,837.35,1.1893868]
[1766670373672,1.19394975,838.35,837.35,1.1893868]
[1766670373871,1.19394975,838.34,837.35,1.1893868]
[1766670374070,1.19394975,838.33,837.35,1.1893868]
[1766670374275,1.19394975,838.32,837.36,1.1893868]
[1766670374572,1.19394975,838.31,837.36,1.1893868]
[1766670374876,1.19394975,838.3,837.36,1.1893868]
[1766670375073,1.19394975,838.29,837.36,14.03240902]
[1766670375372,1.19394975,838.28,837.36,14.03240902]
[1766670375573,1.19394975,838.27,837.36,14.03240902]
[1766670375772,1.19394975,838.26,837.36,14.03240902]
[1766670376071,1.19394975,838.25,837.36,14.03240902]
[1766670376275,1.19394975,838.24,837.37,1.1893868]
[1766670376473,9.03612863,838.3,837.37,1.1893868]
[1766670376672,1.19394975,838.29,837.37,1.1893868]
[1766670376873,1.19394975,838.28,837.37,1.1893868]
[1766670377077,1.19394975,838.27,837.37,1.1893868]
[1766670377277,1.19394975,838.26,837.37,1.1893868]
[1766670377478,1.19394975,838.25,837.37,1.1893868]
[1766670377677,1.19394975,838.24,837.37,1.1893868]
[1766670377973,1.19394975,838.23,837.37,1.1893868]
[1766670378178,9.03612863,838.3,837.37,1.1893868]
[1766670378372,1.19394954,838.29,837.37,1.1893868]
[1766670378678,1.19394954,838.28,837.37,1.1893868]
[1766670378877,1.19394954,838.27,837.37,1.1893868]
[1766670379175,1.19394954,838.26,837.38,1.1893868]
[1766670379374,1.19394954,838.25,837.38,1.1893868]
[1766670379572,1.19394954,838.24,837.38,1.1893868]
[1766670379774,1.19394954,838.23,837.38,1.1893868]
[1766670379973,1.19394954,838.22,837.38,1.1893868]
[1766670380273,0.89500617,838.35,837.38,1.1893868]
[1766670380477,1.19394954,838.34,837.38,1.1893868]
[1766670380676,1.19394954,838.33,837.38,1.1893868]
[1766670380874,1.19394954,838.32,837.38,1.1893868]
[1766670381174,1.19394954,838.31,837.39,1.1893868]
[1766670381373,1.19394954,838.3,837.39,1.1893868]
[1766670381673,1.19394954,838.29,837.39,1.1893868]
[1766670381877,1.19394954,838.28,837.39,1.1893868]
[1766670382177,1.19394954,838.27,837.39,1.1893868]
[1766670382376,1.19394954,838.26,837.39,1.1893868]
[1766670382573,1.19394954,838.25,837.39,1.1893868]
[1766670382777,1.19394954,838.24,837.39,1.1893868]
[1766670383077,1.19394954,838.23,837.39,1.1893868]
[1766670383373,1.19394954,838.22,837.39,1.1893868]
[1766670383578,1.19394954,838.21,837.39,1.1893868]
[1766670383775,0.89500617,838.34,837.39,1.1893868]
[1766670383974,1.19394985,838.33,837.39,1.1893868]
[1766670384178,1.19394985,838.32,837.39,1.1893868]
[1766670384474,1.19394985,838.31,837.39,1.1893868]
[1766670384672,1.19394985,838.3,837.39,1.1893868]
[1766670384878,1.19394985,838.29,837.39,1.1893868]
[1766670385080,1.19394985,838.28,837.39,1.1893868]
[1766670385280,1.19394985,838.27,837.39,1.1893868]
[1766670385577,1.19394985,838.26,837.39,1.1893868]
[1766670385776,1.19394985,838.25,837.39,1.1893868]
[1766670385981,1.19394985,838.24,837.39,1.1893868]
[1766670386280,1.19394985,838.23,837.39,1.1893868]
[1766670389186,1.19394985,838.23,837.4,1.1893868]
[1766670389585,1.19394985,838.22,837.4,1.1893868]
[1766670389883,0.89500617,838.32,837.4,1.1893868]
[1766670389884,1.19394985,838.21,837.4,1.1893868]
[1766670390081,1.19394985,838.2,837.4,1.1893868]
[1766670390280,0.89500617,838.33,837.41,1.1893868]
[1766670390480,1.19394965,838.32,837.41,1.1893868]
[1766670390685,1.19394965,838.31,837.41,1.1893868]
[1766670390886,0.89500617,838.5,837.57,1.1893868]
[1766670391187,10.31487998,838.49,837.63,13.07910545]
[1766670391379,1.19365679,838.48,837.64,1.1893868]
[1766670391578,9.12122319,838.49,837.64,1.1893868]
[1766670391778,1.19359073,838.48,837.64,1.1893868]
[1766670391982,9.12122319,838.49,837.64,1.1893868]
[1766670392180,9.12122319,838.49,837.68,1.1893868]
[1766670393289,9.12122319,838.49,837.66,1.1893868]
[1766670393986,9.12122319,838.49,837.68,1.1893868]
[1766670394190,9.12122319,838.49,837.67,1.1893868]
[1766670394392,0.89500617,838.76,837.67,1.1893868]
[1766670394590,1.19349128,838.75,837.67,1.1893868]
[1766670394792,1.19349128,838.74,837.67,1.1893868]
[1766670394998,1.19349128,838.73,837.67,1.1893868]
[1766670395294,1.19349128,838.72,837.65,1.1893868]
[1766670395494,1.19349128,838.71,837.65,1.1893868]
[1766670395698,1.19349128,838.7,837.65,1.1893868]
[1766670395894,1.19349128,838.69,837.65,1.1893868]
[1766670396097,1.19349128,838.68,837.65,1.1893868]
[1766670396297,1.19349128,838.67,837.64,1.1893868]
[1766670396500,1.19349128,838.66,837.62,1.1893868]
[1766670396701,1.19349128,838.65,837.61,1.1893868]
[1766670397401,1.19349128,838.65,837.6,1.1893868]
[1766670398001,1.19349128,838.65,837.58,1.1893868]
[1766670398202,1.19349128,838.65,837.53,1.1893868]
[1766670398498,1.19349128,838.65,836.74,0.01235801]
[1766670398499,1.19349128,838.65,837.51,1.1893868]
[1766670400701,1.19349128,838.65,837.5,1.1893868]
[1766670405505,0.89123142,838.66,837.5,1.1893868]
[1766670405706,1.19368058,838.65,837.5,1.1893868]
[1766670405906,1.19368058,838.64,837.5,1.1893868]
[1766670406108,1.19368058,838.63,837.5,1.1893868]
[1766670406406,1.19368058,838.62,837.5,1.1893868]
[1766670406606,1.19368058,838.61,837.5,1.1893868]
[1766670406806,1.19368058,838.6,837.5,1.1893868]
[1766670407007,1.19368058,838.59,837.5,1.1893868]
[1766670407303,0.89123142,838.66,837.5,1.1893868]
[1766670407304,1.19368058,838.58,837.5,1.1893868]
[1766670407510,1.19368058,838.57,837.5,1.1893868]
[1766670407806,1.19368058,838.56,837.5,1.1893868]
[1766670408008,1.19368058,838.55,837.5,1.1893868]
[1766670408210,1.19368058,838.54,837.5,1.1893868]
[1766670408410,1.19368058,838.53,837.5,1.1893868]
[1766670408610,1.19368058,838.52,837.5,1.1893868]
[1766670408806,1.19368058,838.51,837.5,1.1893868]
[1766670409005,1.19368058,838.5,837.5,1.1893868]
[1766670409209,0.89123142,838.66,837.5,1.1893868]
[1766670409506,1.19368058,838.65,837.5,1.1893868]
[1766670409708,1.19368058,838.64,837.5,1.1893868]
[1766670409910,1.19368058,838.63,837.5,1.1893868]
[1766670410107,1.19368058,838.62,837.5,1.1893868]
[1766670410412,1.19368058,838.61,837.5,1.1893868]
[1766670410612,1.19368058,838.6,837.51,1.1893868]
[1766670410811,0.89123142,838.75,837.59,1.1893868]
[1766670411008,1.19355021,838.74,837.59,1.1893868]
[1766670411212,1.19355021,838.73,837.59,1.1893868]
[1766670411412,1.19355021,838.72,837.59,1.1893868]
[1766670411612,1.19355021,838.71,837.59,1.1893868]
[1766670411910,1.19355021,838.7,837.59,1.1893868]
[1766670412114,1.19355021,838.69,837.59,1.1893868]
[1766670412309,1.19355021,838.68,837.59,1.1893868]
[1766670412613,1.19355021,838.67,837.59,1.1893868]
[1766670412813,1.19355021,838.66,837.59,1.1893868]
[1766670413013,1.19355021,838.65,837.59,1.1893868]
[1766670413313,1.19355021,838.64,837.56,1.1893868]
[1766670413513,1.19355021,838.63,837.52,1.1893868]
[1766670413714,1.19355021,838.62,837.52,1.1893868]
[1766670413914,1.19355021,838.61,837.52,1.1893868]
[1766670414113,1.19355021,838.6,837.52,1.1893868]
[1766670414316,1.19355021,838.59,837.52,1.1893868]
[1766670414516,1.19355021,838.58,837.52,1.1893868]
[1766670414715,1.19355021,838.57,837.52,1.1893868]
[1766670415017,1.19355021,838.56,837.43,1.1893868]
[1766670415218,1.19355021,838.55,837.43,1.1893868]
[1766670415415,1.19355021,838.54,837.43,1.1893868]
[1766670415614,1.19355021,838.53,837.43,1.1893868]
[1766670415816,1.19355021,838.52,837.43,1.1893868]
[1766670416016,1.19355021,838.51,837.43,1.1893868]
[1766670416216,1.19355021,838.5,837.43,1.1893868]
[1766670416415,1.19355021,838.49,837.43,1.1893868]
[1766670416616,1.19355021,838.48,837.43,1.1893868]
[1766670416819,1.19355021,838.47,837.43,1.1893868]
[1766670417118,1.19355021,838.46,837.43,1.1893868]
[1766670417319,1.19355021,838.45,837.43,1.1893868]
[1766670417622,1.19355021,838.44,837.43,1.1893868]
[1766670417818,1.19355021,838.43,837.43,1.1893868]
[1766670418018,0.89123142,838.58,837.43,1.1893868]
[1766670418216,1.19374027,838.57,837.46,1.1893868]
[1766670418524,0.89123142,838.61,837.46,1.1893868]
[1766670418525,1.19374027,838.56,837.46,1.1893868]
[1766670418716,1.19374027,838.55,837.46,1.1893868]
[1766670419021,1.19374027,838.54,837.46,1.1893868]
[1766670419220,1.19374027,838.53,837.46,1.1893868]
[1766670419420,1.19374027,838.52,837.46,1.1893868]
[1766670419721,1.19374027,838.51,837.46,1.1893868]
[1766670419920,1.19374027,838.5,837.46,1.1893868]
[1766670420119,1.19374027,838.49,837.46,1.1893868]
[1766670420318,1.19374027,838.48,837.46,1.1893868]
[1766670420516,1.19374027,838.47,837.46,1.1893868]
[1766670420721,0.89123142,838.63,837.49,1.1893868]
[1766670420919,1.19368236,838.62,837.51,1.1893868]
[1766670421123,1.19368236,838.61,837.51,1.1893868]
[1766670421320,1.19368236,838.6,837.51,1.1893868]
[1766670421620,1.19368236,838.59,837.51,1.1893868]
[1766670421920,1.19368236,838.58,837.51,1.1893868]
[1766670422120,1.19368236,838.57,837.51,1.1893868]
[1766670422320,1.19368236,838.56,837.51,1.1893868]
[1766670422525,1.19368236,838.55,837.49,1.1893868]
[1766670422726,1.19368236,838.54,837.49,1.1893868]
[1766670422923,1.19368236,838.53,837.49,1.1893868]
[1766670423224,1.19368236,838.52,837.5,1.1893868]
[1766670424022,1.19368236,838.52,837.49,1.1893868]
[1766670424521,1.19368236,838.52,837.5,1.1893868]
[1766670426827,1.19368236,838.51,837.5,1.1893868]
[1766670427024,1.19368236,838.5,837.5,1.1893868]
[1766670427229,1.19368236,838.49,837.51,1.1893868]
[1766670427525,1.19368236,838.48,837.51,1.1893868]
[1766670427829,1.19368236,838.47,837.51,1.1893868]
[1766670428029,1.19368236,838.46,837.51,1.1893868]
[1766670428324,1.19368236,838.45,837.51,1.1893868]
[1766670428629,0.89123142,838.6,837.51,1.1893868]
[1766670428822,1.19371142,838.59,837.51,1.1893868]
[1766670429025,0.89123142,838.57,837.48,1.1893868]
[1766670429229,2.08494284,838.56,837.49,1.1893868]
[1766670429524,0.89123142,838.54,837.47,1.1893868]
[1766670429730,0.89123142,838.52,837.45,1.1893868]
[1766670429930,1.19371142,838.51,837.45,1.1893868]
[1766670430628,1.19371142,838.5,837.45,1.1893868]
[1766670430828,1.19371142,838.49,837.45,1.1893868]
[1766670431126,1.19371142,838.48,837.45,1.1893868]
[1766670431324,1.19371142,838.47,837.45,1.1893868]
[1766670431630,1.19371142,838.46,837.45,1.1893868]
[1766670431825,1.19371142,838.45,837.45,1.1893868]
[1766670432030,1.19371142,838.44,837.41,1.1893868]
[1766670432229,1.19371142,838.43,837.42,1.1893868]
[1766670432426,1.19371142,838.42,837.42,1.1893868]
[1766670432626,1.19371142,838.41,837.42,1.1893868]
[1766670432829,1.19371142,838.4,837.42,1.1893868]
[1766670433034,1.19371142,838.39,837.4,1.1893868]
[1766670433233,1.19371142,838.38,837.38,1.1893868]
[1766670433432,1.19371142,838.37,837.38,1.1893868]
[1766670433730,1.19371142,838.36,837.35,1.1893868]
[1766670434030,1.19371142,838.35,837.35,1.1893868]
[1766670434234,1.19371142,838.34,837.36,1.1893868]
[1766670434535,1.19371142,838.33,837.36,1.1893868]
[1766670434733,1.19371142,838.32,837.36,1.1893868]
[1766670435032,1.19371142,838.31,837.36,1.1893868]
[1766670435232,1.19371142,838.3,837.36,1.1893868]
[1766670435431,1.19371142,838.29,837.36,1.1893868]
[1766670435732,1.19371142,838.28,837.36,1.1893868]
[1766670435930,1.19371142,838.27,837.36,1.1893868]
[1766670436136,1.19371142,838.26,837.36,1.1893868]
[1766670436332,8.93570919,838.35,837.35,1.1893868]
[1766670436532,1.19396406,838.34,837.35,1.1893868]
[1766670436735,1.19396406,838.33,837.35,1.1893868]
[1766670436931,1.19396406,838.32,837.35,1.1893868]
[1766670437132,1.19396406,838.31,837.35,1.1893868]
[1766670437337,1.19396406,838.3,837.35,1.1893868]
[1766670437634,8.93570919,838.35,837.35,1.1893868]
[1766670437635,1.19396406,838.29,837.35,1.1893868]
[1766670437938,1.19396406,838.28,837.35,1.1893868]
[1766670438138,1.19396406,838.27,837.35,1.1893868]
[1766670438335,1.19396385,838.26,837.35,1.1893868]
[1766670438535,0.8926232,838.41,837.35,1.1893868]
[1766670438738,1.19396395,838.4,837.35,1.1893868]
[1766670439039,1.19396395,838.39,837.35,1.1893868]
[1766670439239,1.19396395,838.38,837.35,1.1893868]
[1766670439437,1.19396395,838.37,837.35,1.1893868]
[1766670439637,1.19396395,838.36,837.34,1.1893868]
[1766670439841,0.8926232,838.4,837.34,1.1893868]
[1766670439842,1.19396395,838.35,837.34,1.1893868]
[1766670440140,1.19396395,838.34,837.34,1.1893868]
[1766670440340,1.19396395,838.33,837.34,1.1893868]
[1766670440540,1.19396395,838.32,837.34,1.1893868]
[1766670440741,1.19396395,838.31,837.34,1.1893868]
[1766670440939,1.19396395,838.3,837.28,1.1893868]
[1766670441137,1.19396395,838.29,837.28,1.1893868]
[1766670441442,1.19396395,838.28,837.28,1.1893868]
[1766670441742,1.19396395,838.27,837.28,1.1893868]
[1766670441940,1.19396395,838.26,837.28,1.1893868]
[1766670442140,1.19396395,838.25,837.28,1.1893868]
[1766670442337,1.19396395,838.24,837.28,1.1893868]
[1766670442537,1.19396395,838.23,837.28,1.1893868]
[1766670442836,1.19396395,838.22,837.28,1.1893868]
[1766670443140,1.19396395,838.21,837.28,1.1893868]
[1766670443340,0.8926232,838.36,837.27,1.1893868]
[1766670443538,1.19405448,838.35,837.27,1.1893868]
[1766670443737,1.19405448,838.34,837.27,1.1893868]
[1766670443938,1.19405448,838.33,837.27,1.1893868]
[1766670444138,1.19405448,838.32,837.27,1.1893868]
[1766670444441,1.19405448,838.31,837.27,1.1893868]
[1766670444642,1.19405448,838.3,837.27,1.1893868]
[1766670444841,1.19405448,838.29,837.27,1.1893868]
[1766670445141,1.19405448,838.29,837.12,1.79182466]
[1766670445142,0.8926232,838.24,837.12,1.1893868]
[1766670445341,1.19405448,838.23,837.12,1.1893868]
[1766670446342,1.19405448,838.23,837.11,1.1893868]
[1766670446544,1.19405448,838.22,837.11,1.1893868]
[1766670447239,1.19405448,838.22,837.1,1.1893868]
[1766670447840,1.19405448,838.22,836.68,55.97662702]
[1766670447841,1.19405448,838.22,837.19,1.1893868]
[1766670448443,0.20767688,838.08,837.19,1.1893868]
[1766670449242,0.20767688,838.08,837.18,1.1893868]
[1766670450141,0.8926232,838.36,837.18,1.1893868]
[1766670450340,1.19410519,838.35,837.19,1.1893868]
[1766670450541,0.20765644,838.18,837.19,1.1893868]
[1766670453145,0.20765644,838.18,837.18,1.1893868]
[1766670454346,0.20765644,838.18,837.2,1.1893868]
[1766670456343,0.20765644,838.18,837.21,1.1893868]
[1766670458146,0.20765644,838.18,837.22,1.1893868]
[1766670460951,0.20765644,838.18,837.2,1.1893868]
[1766670463449,1.19416648,838.17,837.2,1.1893868]
[1766670463652,1.19416648,838.16,837.16,1.1893868]
[1766670463950,0.20765644,838.18,837.16,1.1893868]
[1766670464154,1.19416648,838.17,837.16,1.1893868]
[1766670464354,1.19416648,838.16,837.16,1.1893868]
[1766670464552,0.20765644,838.18,837.16,1.1893868]
[1766670464553,1.19416648,838.15,837.16,1.1893868]
[1766670464752,0.20765644,838.18,837.16,1.1893868]
[1766670464956,1.19416648,838.17,837.16,1.1893868]
[1766670465156,1.19416648,838.16,837.16,1.1893868]
[1766670465453,0.20765644,838.18,837.16,1.1893868]
[1766670465659,1.19416648,838.17,837.16,1.1893868]
[1766670465859,1.19416648,838.16,837.16,1.1893868]
[1766670466153,1.19416648,838.15,837.17,1.1893868]
[1766670466352,0.20765644,838.18,837.17,1.1893868]
[1766670466554,1.19416668,838.17,837.17,1.1893868]
[1766670466758,1.19416668,838.16,837.17,14.32390395]
[1766670466953,1.19416668,838.15,837.17,14.32390395]
[1766670467255,1.19424918,838.14,837.17,13.13451715]
[1766670467455,1.19424918,838.13,837.17,13.13451715]
[1766670467659,1.19424918,838.12,837.17,13.13451715]
[1766670467955,1.19424918,838.11,837.17,13.13451715]
[1766670468158,1.19424918,838.1,837.17,13.13451715]
[1766670468360,1.19424918,838.09,837.17,13.13451715]
[1766670468555,8.84280686,838.17,837.17,13.13451715]
[1766670468755,1.19424928,838.16,837.17,13.13451715]
[1766670468955,1.19424928,838.15,837.17,13.13451715]
[1766670469156,1.19424928,838.14,837.17,13.13451715]
[1766670469359,1.19424928,838.13,837.17,13.13451715]
[1766670469556,1.19424928,838.12,837.17,13.13451715]
[1766670469856,1.19424928,838.11,837.17,13.13451715]
[1766670470054,1.19424928,838.1,837.17,13.13451715]
[1766670470260,1.19424928,838.09,837.17,13.13451715]
[1766670470457,1.19424928,838.08,837.17,13.13451715]
[1766670470661,8.84280686,838.17,837.17,13.13451715]
[1766670470863,1.19424939,838.16,837.12,1.1893868]
[1766670471162,1.19424939,838.15,837.13,1.1893868]
[1766670471463,1.19424939,838.14,837.13,1.1893868]
[1766670471659,1.19424939,838.13,837.13,1.1893868]
[1766670471859,1.19424939,838.12,837.13,1.1893868]
[1766670472163,1.19424939,838.11,837.13,1.1893868]
[1766670472358,0.20765644,838.18,837.13,1.1893868]
[1766670472359,1.19424939,838.1,837.13,1.1893868]
[1766670472564,1.19424939,838.09,837.13,1.1893868]
[1766670472861,1.19424939,838.08,837.13,1.1893868]
[1766670473064,1.19424939,838.07,837.13,1.1893868]
[1766670473262,1.19424939,838.06,837.14,1.1893868]
[1766670473466,0.20765644,838.18,837.14,1.1893868]
[1766670473660,1.19425945,838.17,837.14,1.1893868]
[1766670473865,1.19425945,838.16,837.14,1.1893868]
[1766670474062,1.19425945,838.15,837.14,1.1893868]
[1766670474264,1.19425945,838.14,837.14,1.1893868]
[1766670474566,1.19425945,838.13,837.14,1.1893868]
[1766670474760,1.19425945,838.12,837.14,1.1893868]
[1766670474965,1.19425945,838.11,837.14,1.1893868]
[1766670475165,1.19425945,838.1,837.15,1.1893868]
[1766670475364,1.19425945,838.09,837.15,1.1893868]
[1766670475566,1.19425945,838.08,837.15,1.1893868]
[1766670475866,1.19425945,838.07,837.15,1.1893868]
[1766670476070,1.19425945,838.06,837.15,1.1893868]
[1766670476266,1.19425945,838.05,837.15,1.1893868]
[1766670476466,1.19425945,838.04,837.15,1.1893868]
[1766670476767,1.10027964,838.18,837.15,1.1893868]
[1766670476969,1.19425945,838.17,837.17,1.1893868]
[1766670477268,1.19425945,838.16,837.18,1.1893868]
[1766670477467,1.19425945,838.15,837.18,1.1893868]
[1766670477663,0.20765644,838.18,837.18,1.1893868]
[1766670477664,1.19425945,838.14,837.18,1.1893868]
[1766670477864,1.19425945,838.13,837.18,1.1893868]
[1766670478069,1.19425945,838.12,837.18,14.4113398]
[1766670478270,1.19425945,838.11,837.18,14.4113398]
[1766670478572,1.19425945,838.1,837.19,1.1893868]
[1766670478766,1.19425945,838.09,837.19,1.1893868]
[1766670478966,1.19425945,838.08,837.19,1.1893868]
[1766670479165,1.19425945,838.07,837.19,1.1893868]
[1766670479466,1.19425945,838.06,837.19,1.1893868]
[1766670479671,8.9193627,838.13,837.19,1.1893868]
[1766670479872,1.19421615,838.12,837.19,1.1893868]
[1766670480072,1.19421615,838.11,837.21,1.1893868]
[1766670480271,1.19421615,838.1,837.22,1.1893868]
[1766670480571,1.19421615,838.09,837.22,1.1893868]
[1766670480772,8.9193627,838.13,837.23,1.1893868]
[1766670481072,1.19416311,838.12,837.25,1.1893868]
[1766670481271,1.19416311,838.11,837.25,1.1893868]
[1766670481466,0.20765644,838.18,837.25,1.1893868]
[1766670481667,1.19414331,838.17,837.25,1.1893868]
[1766670481872,1.19414331,838.16,837.25,1.1893868]
[1766670482071,1.19414331,838.15,837.25,1.1893868]
[1766670482270,1.19414331,838.14,837.25,1.1893868]
[1766670482469,1.19414331,838.13,837.25,1.1893868]
[1766670482672,1.19414331,838.12,837.25,1.1893868]
[1766670482870,1.19414331,838.11,837.25,1.1893868]
[1766670483070,1.19414331,838.1,837.25,1.1893868]
[1766670483270,0.20765644,838.18,837.26,1.1893868]
[1766670483572,1.19414331,838.17,837.26,1.1893868]
[1766670483773,1.19414331,838.16,837.26,1.1893868]
[1766670483971,1.19414331,838.15,837.26,1.1893868]
[1766670484274,1.19414331,838.14,837.25,1.1893868]
[1766670484473,1.19414331,838.13,837.25,1.1893868]
[1766670484670,1.19414331,838.12,837.25,1.1893868]
[1766670484971,1.19414331,838.11,837.25,1.1893868]
[1766670485174,1.19414331,838.1,837.26,1.1893868]
[1766670485475,1.19414331,838.09,837.26,1.1893868]
[1766670485675,8.90410227,838.09,837.26,1.1893868]
[1766670488680,8.90410227,838.09,837.32,1.1893868]
[1766670488978,0.20765644,838.18,837.32,1.1893868]
[1766670489179,1.19405591,838.17,837.32,1.1893868]
[1766670489480,1.19405591,838.16,837.32,1.1893868]
[1766670489779,1.19405591,838.15,837.32,1.1893868]
[1766670489974,0.20765644,838.18,837.32,1.1893868]
[1766670490280,1.1940558,838.17,837.32,1.1893868]
[1766670490480,1.1940558,838.16,837.32,1.1893868]
[1766670490676,1.1940558,838.15,837.32,1.1893868]
[1766670490880,0.20765644,838.18,837.32,1.1893868]
[1766670491081,1.1940558,838.17,837.32,1.1893868]
[1766670491377,1.1940558,838.16,837.32,1.1893868]
[1766670491577,1.1940558,838.15,837.32,1.1893868]
[1766670491778,0.20765644,838.18,837.32,1.1893868]
[1766670491982,1.19405549,838.17,837.32,1.1893868]
[1766670492179,1.19405549,838.16,837.32,1.1893868]
[1766670492382,1.19405549,838.15,837.32,1.1893868]
[1766670492677,0.20765644,838.18,837.32,1.1893868]
[1766670492879,1.19405539,838.17,837.32,1.1893868]
[1766670493080,1.19405539,838.16,837.32,1.1893868]
[1766670493279,1.19405539,838.15,837.32,1.1893868]
[1766670493478,0.20765644,838.18,837.32,1.1893868]
[1766670493682,1.19405549,838.17,837.32,1.1893868]
[1766670493883,1.19405549,838.16,837.32,1.1893868]
[1766670494084,1.19405549,838.15,837.32,1.1893868]
[1766670494380,0.20765644,838.18,837.32,1.1893868]
[1766670494584,1.19405527,838.17,837.32,1.1893868]
[1766670494780,1.19405527,838.16,837.32,1.1893868]
[1766670494983,1.19405527,838.15,837.32,1.1893868]
[1766670495179,0.20765644,838.18,837.32,1.1893868]
[1766670495378,1.19405517,838.17,837.32,1.1893868]
[1766670495581,1.19405517,838.16,837.32,1.1893868]
[1766670495785,1.19405517,838.15,837.32,1.1893868]
[1766670495983,0.20765644,838.18,837.32,1.1893868]
[1766670496183,1.19405527,838.17,837.32,1.1893868]
[1766670496386,1.19405527,838.16,837.32,1.1893868]
[1766670496686,0.20765644,838.18,837.32,1.1893868]
[1766670496884,1.19405527,838.17,837.32,1.1893868]
[1766670497083,1.19405527,838.16,837.32,1.1893868]
[1766670497287,0.20765644,838.18,837.32,1.1893868]
[1766670497587,1.19405527,838.17,837.32,1.1893868]
[1766670497783,1.19405527,838.16,837.32,1.1893868]
[1766670497984,0.20765644,838.18,837.32,1.1893868]
[1766670498191,1.19405527,838.17,837.32,1.1893868]
[1766670498486,1.19405527,838.16,837.32,1.1893868]
[1766670498691,8.89478809,838.16,837.32,1.1893868]
[1766670499490,8.89478809,838.16,837.36,1.1893868]
[1766670500288,8.89478809,838.16,837.35,1.1893868]
[1766670502093,0.20765644,838.18,837.35,1.1893868]
[1766670505295,0.20765644,838.18,837.34,1.1893868]
[1766670506494,0.20765644,838.18,837.36,1.1893868]
[1766670508896,0.20765644,838.18,837.32,1.1893868]
[1766670509094,1.1940762,838.17,837.28,1.1893868]
[1766670509299,1.1940762,838.16,837.28,1.1893868]
[1766670509495,0.20765644,838.18,837.28,1.1893868]
[1766670509797,1.1940762,838.17,837.28,1.1893868]
[1766670509998,1.1940762,838.16,837.28,1.1893868]
[1766670510198,0.20765644,838.18,837.28,1.1893868]
[1766670510398,1.1940763,838.17,837.28,1.1893868]
[1766670510597,1.1940763,838.16,837.28,1.1893868]
[1766670510799,0.20765644,838.18,837.28,1.1893868]
[1766670510997,1.1940763,838.17,837.28,1.1893868]
[1766670511301,1.1940763,838.16,837.28,1.1893868]
[1766670511500,0.20765644,838.18,837.28,1.1893868]
[1766670511696,1.1940763,838.17,837.28,1.1893868]
[1766670511900,1.1940763,838.16,837.28,1.1893868]
[1766670512100,0.20765644,838.18,837.28,1.1893868]
[1766670512298,1.1940763,838.17,837.28,1.1893868]
[1766670512498,1.1940763,838.16,837.28,1.1893868]
[1766670512702,0.20765644,838.18,837.28,1.1893868]
[1766670512903,1.1940763,838.17,837.28,1.1893868]
[1766670513198,1.1940763,838.16,837.28,1.1893868]
[1766670513499,0.20765644,838.18,837.28,1.1893868]
[1766670513500,8.86155217,838.17,837.28,1.1893868]
[1766670513702,1.1940763,838.16,837.28,1.1893868]
[1766670513998,8.86155217,838.17,837.28,1.1893868]
[1766670514201,1.1940763,838.16,837.28,1.1893868]
[1766670514399,8.86155217,838.17,837.28,1.1893868]
[1766670514604,1.1940763,838.16,837.27,1.1893868]
[1766670514802,1.1940763,838.16,837.12,1.79182466]
[1766670514803,1.1940763,838.15,837.25,1.1893868]
[1766670515006,1.1940763,838.14,837.15,1.1893868]
[1766670515305,1.1940763,838.13,837.15,1.1893868]
[1766670515508,0.89379633,838.16,837.15,1.1893868]
[1766670515509,1.1940763,838.12,837.15,1.1893868]
[1766670515710,1.1940763,838.11,837.15,1.1893868]
[1766670515906,1.1940763,838.1,837.15,1.1893868]
[1766670516105,1.1940763,838.09,837.15,1.1893868]
[1766670516309,1.1940763,838.08,837.16,1.1893868]
[1766670516508,1.1940763,838.07,837.15,1.1893868]
[1766670516707,1.1940763,838.06,837.15,1.1893868]
[1766670517010,1.1940763,838.05,837.15,1.1893868]
[1766670517208,1.1940763,838.04,837.16,1.1893868]
[1766670517408,1.1940763,838.03,837.15,1.1893868]
[1766670517708,0.89379633,838.16,837.15,1.1893868]
[1766670517907,1.19426201,838.15,837.15,1.1893868]
[1766670518111,1.19426201,838.14,837.15,1.1893868]
[1766670518307,1.19426201,838.13,837.15,1.1893868]
[1766670518513,1.19426201,838.12,837.15,1.1893868]
[1766670518712,0.89379633,838.16,837.15,1.1893868]
[1766670518713,1.19426201,838.11,837.15,1.1893868]
[1766670518910,1.19426201,838.1,837.15,1.1893868]
[1766670519211,1.19426201,838.09,837.16,1.1893868]
[1766670519416,1.19426201,838.08,837.15,1.1893868]
[1766670519616,1.19426201,838.07,837.16,13.03239016]
[1766670519812,1.19426201,838.06,837.16,13.03239016]
[1766670520017,1.19426201,838.05,837.16,13.03239016]